fUSD/lending_fUSD_20250115
["ID","MTS","AMOUNT","RATE_DAILY","PERIOD"]
[349131657,1736982652801,-159.935519,0.00043013,4]
[349131658,1736982652811,-500.0,0.00043013,4]
[349131659,1736982652821,-500.0,0.00043013,4]
[349131660,1736982652830,-500.0,0.00043013,4]
[349131661,1736982652840,-414.18379964,0.00043013,4]
[349131662,1736982652851,-500.0,0.00043013,4]
[349131663,1736982652860,-500.0,0.00043013,4]
[349131664,1736982652869,-500.0,0.00043013,4]
[349131665,1736982652878,-500.0,0.00043013,4]
[349131666,1736982652887,-158.758468,0.00043013,4]
[349131667,1736982652897,-500.0,0.00043013,4]
[349131668,1736982652906,-500.0,0.00043013,4]
[349131669,1736982652915,-500.0,0.00043013,4]
[349131670,1736982652925,-500.0,0.00043013,4]
[349131671,1736982652934,-500.0,0.00043013,4]
[349131672,1736982652943,-500.0,0.00043013,4]
[349131673,1736982652953,-500.0,0.00043013,4]
[349131674,1736982652962,-500.0,0.00043013,4]
[349131675,1736982652971,-500.0,0.00043013,4]
[349131676,1736982652981,-500.0,0.00043013,4]
[349131677,1736982652994,-500.0,0.00043013,4]
[349131678,1736982653004,-500.0,0.00043013,4]
[349131679,1736982653014,-500.0,0.00043013,4]
[349131680,1736982653023,-548.91316647,0.00043013,4]
[349131681,1736982653033,-500.0,0.00043013,4]
[349131682,1736982653044,-500.0,0.00043013,4]
[349131683,1736982653054,-500.0,0.00043013,4]
[349131684,1736982653063,-465.12383188,0.00043013,4]
[349131685,1736982653073,-500.0,0.00043013,4]
[349131686,1736982653082,-500.0,0.00043013,4]
[349131687,1736982653092,-513.54,0.00043013,4]
[349131688,1736982653101,-513.54,0.00043013,4]
[349131689,1736982653110,-500.0,0.00043013,4]
[349131690,1736982653119,-500.0,0.00043013,4]
[349131691,1736982653128,-513.54,0.00043013,4]
[349131692,1736982653137,-500.0,0.00043013,4]
[349131693,1736982653146,-513.54,0.00043013,4]
[349131694,1736982653156,-500.0,0.00043013,4]
[349131695,1736982653165,-500.0,0.00043013,4]
[349131696,1736982653175,-3018.5874115,0.00043019,2]
[349131697,1736982653184,-1348.6769452,0.00043019,2]
[349131698,1736982653193,-2858.579331,0.00043019,2]
[349131699,1736982653203,-4097.8982063,0.00043019,2]
[349131700,1736982653212,-9495.9564275,0.00043019,2]
[349131701,1736982653221,-744.1740288,0.00043025,15]
[349131702,1736982653231,-500.0,0.00043069,4]
[349131703,1736982653240,-500.0,0.00043069,4]
[349131704,1736982653249,-500.0,0.00043072,2]
[349131705,1736982653258,-500.0,0.00043072,2]
[349131706,1736982653267,-500.0,0.00043072,2]
[349131707,1736982653276,-500.0,0.00043072,2]
[349131708,1736982653285,-500.0,0.00043072,2]
[349131709,1736982653294,-500.0,0.00043072,2]
[349131710,1736982653304,-6513.00996676,0.00043072,4]
[349131711,1736982653312,-500.0,0.00043073,10]
[349131712,1736982653322,-163.17784827,0.00043073,7]
[349131713,1736982653331,-160.8861221,0.00043073,10]
[349131714,1736982653340,-302.83898656,0.00043073,10]
[349131715,1736982653349,-500.0,0.00043073,2]
[349131716,1736982653358,-456.96,0.00043121,2]
[349131717,1736982653368,-6513.00996676,0.00043141,4]
[349131718,1736982653377,-6513.00996676,0.0004321,4]
[349131719,1736982653386,-744.1740288,0.00043213,15]
[349131720,1736982653395,-523.352479,0.00043226,120]
[349131721,1736982653406,-500.0,0.00043278,4]
[349131722,1736982653416,-500.0,0.00043278,4]
[349131723,1736982653425,-500.0,0.00043278,4]
[349131724,1736982653434,-500.0,0.00043278,4]
[349131725,1736982653444,-500.0,0.00043278,4]
[349131726,1736982653454,-718.08,0.00043278,4]
[349131727,1736982653463,-500.0,0.00043278,4]
[349131728,1736982653472,-577.43,0.00043278,4]
[349131729,1736982653482,-911.89,0.00043278,4]
[349131730,1736982653491,-500.0,0.00043278,4]
[349131731,1736982653500,-500.0,0.00043278,4]
[349131732,1736982653510,-500.0,0.00043278,4]
[349131733,1736982653520,-860.15,0.00043278,4]
[349131734,1736982653529,-720.48,0.00043278,4]
[349131735,1736982653538,-500.0,0.00043278,4]
[349131736,1736982653549,-500.0,0.00043278,4]
[349131737,1736982653559,-500.0,0.00043278,4]
[349131738,1736982653569,-500.0,0.00043278,4]
[349131739,1736982653579,-2344.4,0.00043278,4]
[349131740,1736982653588,-159.595454,0.00043278,4]
[349131741,1736982653598,-587.28,0.00043278,4]
[349131742,1736982653607,-500.0,0.00043278,4]
[349131743,1736982653617,-6513.00996676,0.00043279,4]
[349131744,1736982653626,-10882.95292593,0.000433,120]
[349131745,1736982653635,-6513.00996676,0.00043348,4]
[349131746,1736982653645,-162.13444048,0.00043399,120]
[349131747,1736982653654,-500.0,0.00043399,4]
[349131748,1736982653664,-500.0,0.00043399,4]
[349131749,1736982653674,-500.0,0.00043399,4]
[349131750,1736982653683,-500.0,0.00043399,4]
[349131751,1736982653693,-500.0,0.00043399,4]
[349131752,1736982653702,-1479.27,0.00043399,4]
[349131753,1736982653711,-500.0,0.00043399,4]
[349131754,1736982653721,-500.0,0.00043399,4]
[349131755,1736982653730,-500.0,0.00043399,4]
[349131756,1736982653739,-500.0,0.00043399,4]
[349131757,1736982653748,-500.0,0.00043399,4]
[349131758,1736982653758,-500.0,0.00043399,4]
[349131759,1736982653768,-500.0,0.00043399,4]
[349131760,1736982653777,-500.0,0.00043399,4]
[349131761,1736982653787,-500.0,0.00043399,4]
[349131762,1736982653797,-500.0,0.00043399,4]
[349131763,1736982653807,-500.0,0.00043399,4]
[349131764,1736982653816,-608.01,0.00043399,4]
[349131765,1736982653825,-468.66061931,0.00043399,4]
[349131766,1736982653835,-659.76,0.00043399,4]
[349131767,1736982653845,-809.31,0.00043399,4]
[349131768,1736982653854,-500.0,0.00043399,4]
[349131769,1736982653864,-500.0,0.00043399,4]
[349131770,1736982653873,-578.38,0.00043399,4]
[349131771,1736982653883,-500.0,0.00043399,4]
[349131772,1736982653892,-500.0,0.00043399,4]
[349131773,1736982653901,-500.0,0.00043399,4]
[349131774,1736982653911,-500.0,0.00043399,4]
[349131775,1736982653920,-500.0,0.00043399,4]
[349131776,1736982653930,-703.13,0.00043399,4]
[349131777,1736982653939,-500.0,0.00043399,4]
[349131778,1736982653949,-939.23,0.00043399,4]
[349131779,1736982653960,-685.68,0.00043399,4]
[349131780,1736982653970,-500.0,0.00043399,4]
[349131781,1736982653981,-500.0,0.00043399,4]
[349131782,1736982653993,-500.0,0.00043399,4]
[349131783,1736982654003,-641.34,0.00043399,4]
[349131784,1736982654012,-1210.68,0.00043399,4]
[349131785,1736982654023,-500.0,0.00043399,4]
[349131786,1736982654032,-500.0,0.00043399,4]
[349131787,1736982654041,-513.54,0.00043399,4]
[349131788,1736982654051,-500.0,0.00043399,4]
[349131789,1736982654061,-162.13444044,0.00043399,120]
[349131790,1736982654071,-162.13444044,0.00043399,120]
[349131791,1736982654080,-162.13444044,0.00043399,120]
[349131792,1736982654090,-162.13444044,0.000434,120]
[349131793,1736982654099,-162.13444044,0.000434,120]
[349131794,1736982654108,-162.13444044,0.000434,120]
[349131795,1736982654118,-162.13444044,0.000434,120]
[349131796,1736982654127,-764.5498188,0.000434,120]
[349131797,1736982654136,-764.5498188,0.000434,120]
[349131798,1736982654145,-764.5498188,0.000434,120]
[349131799,1736982654155,-764.5498188,0.000434,120]
[349131800,1736982654164,-764.5498188,0.000434,120]
[349131801,1736982654173,-764.5498188,0.000434,120]
[349131802,1736982654182,-764.5498188,0.000434,120]
[349131803,1736982654191,-764.5498188,0.000434,120]
[349131804,1736982654201,-764.5498188,0.000434,120]
[349131805,1736982654210,-764.5498188,0.000434,120]
[349131806,1736982654219,-764.5498188,0.000434,120]
[349131807,1736982654228,-764.5498188,0.000434,120]
[349131808,1736982654237,-764.5498188,0.000434,120]
[349131809,1736982654246,-764.5498188,0.000434,120]
[349131810,1736982654255,-764.5498188,0.000434,120]
[349131811,1736982654380,-764.5498188,0.000434,120]
[349131812,1736982654389,-764.5498188,0.000434,120]
[349131813,1736982654399,-764.5498188,0.000434,120]
[349131814,1736982654408,-764.5498188,0.000434,120]
[349131815,1736982654418,-764.54,0.000434,120]
[349131816,1736982654427,-1783.94957719,0.000434,120]
[349131817,1736982654437,-1783.94957719,0.000434,120]
[349131818,1736982654447,-1783.94957719,0.000434,120]
[349131819,1736982654456,-1783.94957719,0.000434,120]
[349131820,1736982654465,-1783.94957719,0.000434,120]
[349131821,1736982654474,-1783.94957719,0.000434,120]
[349131822,1736982654485,-1783.94957719,0.000434,120]
[349131823,1736982654494,-1783.94957719,0.000434,120]
[349131824,1736982654503,-1783.94957719,0.000434,120]
[349131825,1736982654512,-1783.94957719,0.000434,120]
[349131826,1736982654522,-1783.94957719,0.000434,120]
[349131827,1736982654532,-1783.94957719,0.000434,120]
[349131828,1736982654541,-1783.94957719,0.000434,120]
[349131829,1736982654550,-1783.94957719,0.000434,120]
[349131830,1736982654559,-1783.94957719,0.000434,120]
[349131831,1736982654569,-1783.94957719,0.000434,120]
[349131832,1736982654578,-1783.94957719,0.000434,120]
[349131833,1736982654587,-1783.94957719,0.000434,120]
[349131834,1736982654597,-1783.94957719,0.000434,120]
[349131835,1736982654606,-1783.94,0.000434,120]
[349131836,1736982654616,-1000.0,0.000434,120]
[349131837,1736982654625,-162.13444044,0.000434,120]
[349131838,1736982654635,-3177.64175798,0.000434,2]
[349131839,1736982654644,-744.1740288,0.000434,15]
[349131840,1736982654654,-1077.47192896,0.000434,2]
[349131841,1736982654664,-14920.24519857,0.000434,2]
[349131842,1736982654673,-151.0,0.000434,14]
[349131843,1736982654683,-151.0,0.000434,14]
[349131844,1736982654693,-10000.0,0.000434,120]
[349131845,1736982654702,-6513.00996676,0.00043417,4]
[349131846,1736982654712,-500.0,0.00043437,4]
[349131847,1736982654722,-1566.49,0.00043469,4]
[349131848,1736982654732,-500.0,0.00043469,4]
[349131849,1736982654742,-500.0,0.00043469,4]
[349131850,1736982654754,-500.0,0.00043469,4]
[349131851,1736982654765,-500.0,0.00043469,4]
[349131852,1736982654775,-500.0,0.00043469,4]
[349131853,1736982654785,-704.55,0.00043469,4]
[349131854,1736982654796,-528.95,0.00043469,4]
[349131855,1736982654807,-902.29,0.00043469,4]
[349131856,1736982654818,-2382.48,0.00043469,4]
[349131857,1736982654828,-500.0,0.00043469,4]
[349131858,1736982654837,-500.0,0.00043469,4]
[349131859,1736982654847,-500.0,0.00043469,4]
[349131860,1736982654857,-798.43,0.00043469,4]
[349131861,1736982654867,-500.0,0.00043469,4]
[349131862,1736982654877,-500.0,0.00043469,4]
[349131863,1736982654888,-500.0,0.00043469,2]
[349131864,1736982654898,-733.19,0.00043469,4]
[349131865,1736982654908,-911.8,0.00043469,4]
[349131866,1736982654918,-545.05,0.00043469,4]
[349131867,1736982654927,-500.0,0.00043469,4]
[349131868,1736982654938,-1024.52,0.00043469,4]
[349131869,1736982654949,-500.0,0.00043469,4]
[349131870,1736982654959,-500.0,0.00043469,4]
[349131871,1736982654969,-1234.56,0.00043469,4]
[349131872,1736982654980,-513.44,0.00043469,4]
[349131873,1736982654991,-500.0,0.00043469,4]
[349131874,1736982655001,-550.01,0.00043469,4]
[349131875,1736982655011,-1035.03649587,0.00043469,4]
[349131876,1736982655023,-500.0,0.00043469,4]
[349131877,1736982655032,-500.0,0.00043469,4]
[349131878,1736982655042,-500.0,0.00043469,4]
[349131879,1736982655052,-1084.28,0.00043469,4]
[349131880,1736982655063,-500.0,0.00043469,4]
[349131881,1736982655072,-710.33,0.00043469,4]
[349131882,1736982655081,-500.0,0.00043469,4]
[349131883,1736982655091,-500.0,0.00043469,4]
[349131884,1736982655101,-1137.53,0.00043469,4]
[349131885,1736982655110,-2679.4358962,0.0004347,2]
[349131886,1736982655120,-2340.2843809,0.0004347,2]
[349131887,1736982655129,-2001.1328656,0.0004347,2]
[349131888,1736982655139,-1661.9813503,0.0004347,2]
[349131889,1736982655148,-1198.4908966,0.0004347,2]
[349131890,1736982655158,-1048.3048479,0.0004347,2]
[349131891,1736982655167,-898.1187993,0.0004347,2]
[349131892,1736982655177,-747.9327507,0.0004347,2]
[349131893,1736982655186,-2540.2534814,0.0004347,2]
[349131894,1736982655195,-2221.9276318,0.0004347,2]
[349131895,1736982655204,-1903.6017822,0.0004347,2]
[349131896,1736982655214,-1585.2759326,0.0004347,2]
[349131897,1736982655223,-3641.5642106,0.0004347,2]
[349131898,1736982655233,-3185.230215,0.0004347,2]
[349131899,1736982655242,-2728.8962193,0.0004347,2]
[349131900,1736982655251,-2272.5622236,0.0004347,2]
[349131901,1736982655263,-8438.5051388,0.0004347,2]
[349131902,1736982655285,-7381.0538501,0.0004347,2]
[349131903,1736982655294,-6323.6025614,0.0004347,2]
[349131904,1736982655303,-5266.1512726,0.0004347,2]
[349131905,1736982655312,-500.0,0.00043473,10]
[349131906,1736982655323,-500.0,0.00043473,7]
[349131907,1736982655332,-500.0,0.00043473,10]
[349131908,1736982655342,-236.46798455,0.00043473,7]
[349131909,1736982655352,-500.0,0.00043473,10]
[349131910,1736982655361,-500.0,0.00043473,10]
[349131911,1736982655371,-500.0,0.00043473,10]
[349131912,1736982655381,-500.0,0.00043478,4]
[349131913,1736982655390,-153.24,0.00043478,4]
[349131914,1736982655400,-500.0,0.00043478,4]
[349131915,1736982655410,-500.0,0.00043478,4]
[349131916,1736982655420,-500.0,0.00043478,4]
[349131917,1736982655429,-718.08,0.00043478,4]
[349131918,1736982655438,-500.0,0.00043478,4]
[349131919,1736982655448,-577.43,0.00043478,4]
[349131920,1736982655458,-911.89,0.00043478,4]
[349131921,1736982655467,-500.0,0.00043478,4]
[349131922,1736982655477,-500.0,0.00043478,4]
[349131923,1736982655486,-500.0,0.00043478,4]
[349131924,1736982655495,-860.15,0.00043478,4]
[349131925,1736982655506,-720.48,0.00043478,4]
[349131926,1736982655515,-500.0,0.00043478,4]
[349131927,1736982655525,-500.0,0.00043478,4]
[349131928,1736982655535,-500.38002402,0.00043478,4]
[349131929,1736982655544,-510.1111143,0.00043478,4]
[349131930,1736982655554,-2344.4,0.00043478,4]
[349131931,1736982655564,-159.595454,0.00043478,4]
[349131932,1736982655574,-587.28,0.00043478,4]
[349131933,1736982655585,-500.0,0.00043478,4]
[349131934,1736982655595,-500.0,0.00043479,4]
[349131935,1736982655605,-500.0,0.00043479,4]
[349131936,1736982655615,-500.0,0.00043479,4]
[349131937,1736982655624,-500.0,0.00043479,4]
[349131938,1736982655634,-500.0,0.00043479,4]
[349131939,1736982655643,-1479.27,0.00043479,4]
[349131940,1736982655653,-500.0,0.00043479,4]
[349131941,1736982655663,-500.0,0.00043479,4]
[349131942,1736982655672,-180.8,0.00043479,4]
[349131943,1736982655682,-151.0,0.00043479,14]
[349131944,1736982655692,-500.0,0.00043479,4]
[349131945,1736982655704,-151.0,0.00043479,14]
[349131946,1736982655717,-500.0,0.00043479,4]
[349131947,1736982655731,-500.0,0.00043479,4]
[349131948,1736982655743,-500.0,0.00043479,4]
[349131949,1736982655754,-500.0,0.00043479,4]
[349131950,1736982655767,-500.0,0.00043479,4]
[349131951,1736982655802,-608.01,0.00043479,4]
[349131952,1736982655815,-659.76,0.00043479,4]
[349131953,1736982655828,-151.0,0.00043479,14]
[349131954,1736982655842,-151.0,0.00043479,14]
[349131955,1736982655855,-809.31,0.00043479,4]
[349131956,1736982655866,-500.0,0.00043479,4]
[349131957,1736982655877,-500.0,0.00043479,4]
[349131958,1736982655888,-578.38,0.00043479,4]
[349131959,1736982655902,-500.0,0.00043479,4]
[349131960,1736982655915,-500.0,0.00043479,4]
[349131961,1736982655928,-151.0,0.00043479,14]
[349131962,1736982655941,-500.0,0.00043479,4]
[349131963,1736982655954,-191.493843,0.00043479,14]
[349131964,1736982655968,-500.0,0.00043479,4]
[349131965,1736982655984,-191.493843,0.00043479,14]
[349131966,1736982655999,-500.0,0.00043479,4]
[349131967,1736982656012,-947.349662,0.00043479,14]
[349131968,1736982656028,-947.349662,0.00043479,14]
[349131969,1736982656041,-703.13,0.00043479,4]
[349131970,1736982656053,-500.0,0.00043479,4]
[349131971,1736982656064,-939.23,0.00043479,4]
[349131972,1736982656077,-685.68,0.00043479,4]
[349131973,1736982656091,-500.0,0.00043479,4]
[349131974,1736982656103,-500.0,0.00043479,4]
[349131975,1736982656115,-500.0,0.00043479,4]
[349131976,1736982656126,-641.34,0.00043479,4]
[349131977,1736982656137,-1210.68,0.00043479,4]
[349131978,1736982656148,-500.0,0.00043479,4]
[349131979,1736982656162,-500.0,0.00043479,4]
[349131980,1736982656176,-513.54,0.00043479,4]
[349131981,1736982656187,-500.0,0.00043479,4]
[349131982,1736982656197,-92074.0,0.00043479,120]
[349131983,1736982656207,-6513.00996676,0.00043486,4]
[349131984,1736982656219,-1566.49,0.00043497,4]
[349131985,1736982656233,-500.0,0.00043497,4]
[349131986,1736982656245,-500.0,0.00043497,4]
[349131987,1736982656256,-500.0,0.00043497,4]
[349131988,1736982656266,-500.0,0.00043497,4]
[349131989,1736982656294,-500.0,0.00043497,4]
[349131990,1736982656305,-151.0,0.00043497,14]
[349131991,1736982656316,-704.55,0.00043497,4]
[349131992,1736982656328,-528.95,0.00043497,4]
[349131993,1736982656340,-902.29,0.00043497,4]
[349131994,1736982656351,-2382.48,0.00043497,4]
[349131995,1736982656362,-500.0,0.00043497,4]
[349131996,1736982656374,-500.0,0.00043497,4]
[349131997,1736982656385,-151.0,0.00043497,14]
[349131998,1736982656396,-500.0,0.00043497,4]
[349131999,1736982656409,-798.43,0.00043497,4]
[349132000,1736982656421,-500.0,0.00043497,4]
[349132001,1736982656432,-500.0,0.00043497,4]
[349132002,1736982656443,-519.39891205,0.00043497,2]
[349132003,1736982656455,-733.19,0.00043497,4]
[349132004,1736982656466,-911.8,0.00043497,4]
[349132005,1736982656478,-500.0,0.00043497,4]
[349132006,1736982656489,-545.05,0.00043497,4]
[349132007,1736982656501,-500.0,0.00043497,4]
[349132008,1736982656512,-1024.52,0.00043497,4]
[349132009,1736982656524,-500.0,0.00043497,4]
[349132010,1736982656536,-500.0,0.00043497,4]
[349132011,1736982656549,-500.0,0.00043497,4]
[349132012,1736982656561,-500.0,0.00043497,4]
[349132013,1736982656574,-1234.56,0.00043497,4]
[349132014,1736982656585,-513.44,0.00043497,4]
[349132015,1736982656597,-500.0,0.00043497,4]
[349132016,1736982656608,-500.0,0.00043497,4]
[349132017,1736982656619,-718.08,0.00043497,4]
[349132018,1736982656631,-500.0,0.00043497,4]
[349132019,1736982656642,-550.01,0.00043497,4]
[349132020,1736982656652,-577.43,0.00043497,4]
[349132021,1736982656664,-500.0,0.00043497,4]
[349132022,1736982656676,-500.0,0.00043497,4]
[349132023,1736982656689,-911.89,0.00043497,4]
[349132024,1736982656701,-500.0,0.00043497,4]
[349132025,1736982656713,-500.0,0.00043497,4]
[349132026,1736982656724,-500.0,0.00043497,4]
[349132027,1736982656736,-1084.28,0.00043497,4]
[349132028,1736982656747,-500.0,0.00043497,4]
[349132029,1736982656759,-860.15,0.00043497,4]
[349132030,1736982656770,-710.33,0.00043497,4]
[349132031,1736982656783,-720.48,0.00043497,4]
[349132032,1736982656810,-500.0,0.00043497,4]
[349132033,1736982656821,-500.0,0.00043497,4]
[349132034,1736982656833,-500.0,0.00043497,4]
[349132035,1736982656845,-2344.4,0.00043497,4]
[349132036,1736982656857,-500.0,0.00043497,4]
[349132037,1736982656869,-1137.53,0.00043497,4]
[349132038,1736982656879,-587.28,0.00043497,4]
[349132039,1736982656890,-500.0,0.00043497,4]
[349132040,1736982656899,-639.03191514,0.00043498,60]
[349132041,1736982656909,-1061.29224118,0.00043498,60]
[349132042,1736982656918,-500.0,0.00043498,4]
[349132043,1736982656928,-500.0,0.00043498,4]
[349132044,1736982656938,-500.0,0.00043498,4]
[349132045,1736982656948,-500.0,0.00043498,4]
[349132046,1736982656957,-500.0,0.00043498,4]
[349132047,1736982656967,-500.0,0.00043498,4]
[349132048,1736982656977,-500.0,0.00043498,4]
[349132049,1736982656989,-500.0,0.00043498,4]
[349132050,1736982656999,-500.0,0.00043498,4]
[349132051,1736982657008,-500.0,0.00043498,4]
[349132052,1736982657018,-1479.27,0.00043498,4]
[349132053,1736982657027,-1479.27,0.00043498,4]
[349132054,1736982657037,-151.0,0.00043498,14]
[349132055,1736982657047,-151.0,0.00043498,14]
[349132056,1736982657056,-500.0,0.00043498,4]
[349132057,1736982657067,-500.0,0.00043498,4]
[349132058,1736982657077,-500.0,0.00043498,4]
[349132059,1736982657086,-500.0,0.00043498,4]
[349132060,1736982657095,-500.0,0.00043498,4]
[349132061,1736982657105,-500.0,0.00043498,4]
[349132062,1736982657114,-500.0,0.00043498,4]
[349132063,1736982657123,-500.0,0.00043498,4]
[349132064,1736982657133,-500.0,0.00043498,4]
[349132065,1736982657142,-500.0,0.00043498,4]
[349132066,1736982657151,-500.0,0.00043498,4]
[349132067,1736982657161,-500.0,0.00043498,4]
[349132068,1736982657170,-500.0,0.00043498,4]
[349132069,1736982657179,-500.0,0.00043498,4]
[349132070,1736982657189,-1566.49,0.00043498,4]
[349132071,1736982657199,-1566.49,0.00043498,4]
[349132072,1736982657209,-500.0,0.00043498,4]
[349132073,1736982657219,-500.0,0.00043498,4]
[349132074,1736982657228,-500.0,0.00043498,4]
[349132075,1736982657237,-500.0,0.00043498,4]
[349132076,1736982657247,-500.0,0.00043498,4]
[349132077,1736982657482,-500.0,0.00043498,4]
[349132078,1736982657498,-500.0,0.00043498,4]
[349132079,1736982657507,-608.01,0.00043498,4]
[349132080,1736982657517,-500.0,0.00043498,4]
[349132081,1736982657527,-608.01,0.00043498,4]
[349132082,1736982657536,-704.55,0.00043498,4]
[349132083,1736982657553,-528.95,0.00043498,4]
[349132084,1736982657562,-704.55,0.00043498,4]
[349132085,1736982657571,-528.95,0.00043498,4]
[349132086,1736982657580,-902.29,0.00043498,4]
[349132087,1736982657590,-2382.48,0.00043498,4]
[349132088,1736982657599,-500.0,0.00043498,4]
[349132089,1736982657608,-500.0,0.00043498,4]
[349132090,1736982657617,-500.0,0.00043498,4]
[349132091,1736982657626,-659.76,0.00043498,4]
[349132092,1736982657635,-659.76,0.00043498,4]
[349132093,1736982657645,-500.0,0.00043498,4]
[349132094,1736982657654,-500.0,0.00043498,4]
[349132095,1736982657663,-798.43,0.00043498,4]
[349132096,1736982657672,-798.43,0.00043498,4]
[349132097,1736982657683,-500.0,0.00043498,4]
[349132098,1736982657693,-809.31,0.00043498,4]
[349132099,1736982657702,-500.0,0.00043498,4]
[349132100,1736982657712,-809.31,0.00043498,4]
[349132101,1736982657721,-500.0,0.00043498,4]
[349132102,1736982657731,-733.19,0.00043498,4]
[349132103,1736982657740,-733.19,0.00043498,4]
[349132104,1736982657749,-911.8,0.00043498,4]
[349132105,1736982657759,-500.0,0.00043498,4]
[349132106,1736982657768,-911.8,0.00043498,4]
[349132107,1736982657778,-500.0,0.00043498,4]
[349132108,1736982657787,-243.71,0.00043498,4]
[349132109,1736982657803,-500.0,0.00043498,4]
[349132110,1736982657812,-500.0,0.00043498,4]
[349132111,1736982657822,-545.05,0.00043498,4]
[349132112,1736982657831,-500.0,0.00043498,4]
[349132113,1736982657840,-1024.52,0.00043498,4]
[349132114,1736982657849,-1024.52,0.00043498,4]
[349132115,1736982657858,-500.0,0.00043498,4]
[349132116,1736982657868,-500.0,0.00043498,4]
[349132117,1736982657877,-500.0,0.00043498,4]
[349132118,1736982657887,-500.0,0.00043498,4]
[349132119,1736982657897,-500.0,0.00043498,4]
[349132120,1736982657906,-500.0,0.00043498,4]
[349132121,1736982657916,-500.0,0.00043498,4]
[349132122,1736982657925,-500.0,0.00043498,4]
[349132123,1736982657934,-578.38,0.00043498,4]
[349132124,1736982657943,-578.38,0.00043498,4]
[349132125,1736982657953,-164.58964276,0.00043498,4]
[349132126,1736982657962,-500.0,0.00043498,4]
[349132127,1736982657972,-500.0,0.00043498,4]
[349132128,1736982657983,-500.0,0.00043498,4]
[349132129,1736982657996,-608.84312528,0.00043498,4]
[349132130,1736982658006,-500.0,0.00043498,4]
[349132131,1736982658016,-1234.56,0.00043498,4]
[349132132,1736982658027,-513.44,0.00043498,4]
[349132133,1736982658037,-1234.56,0.00043498,4]
[349132134,1736982658051,-500.0,0.00043498,4]
[349132135,1736982658062,-430.19,0.00043498,4]
[349132136,1736982658072,-500.0,0.00043498,4]
[349132137,1736982658081,-500.0,0.00043498,4]
[349132138,1736982658090,-718.08,0.00043498,4]
[349132139,1736982658099,-718.08,0.00043498,4]
[349132140,1736982658109,-718.08,0.00043498,4]
[349132141,1736982658119,-718.08,0.00043498,4]
[349132142,1736982658128,-500.0,0.00043498,4]
[349132143,1736982658139,-500.0,0.00043498,4]
[349132144,1736982658149,-500.0,0.00043498,4]
[349132145,1736982658158,-500.0,0.00043498,4]
[349132146,1736982658167,-500.0,0.00043498,4]
[349132147,1736982658176,-500.0,0.00043498,4]
[349132148,1736982658186,-500.0,0.00043498,4]
[349132149,1736982658195,-500.0,0.00043498,4]
[349132150,1736982658205,-550.01,0.00043498,4]
[349132151,1736982658214,-550.01,0.00043498,4]
[349132152,1736982658224,-577.43,0.00043498,4]
[349132153,1736982658235,-577.43,0.00043498,4]
[349132154,1736982658244,-577.43,0.00043498,4]
[349132155,1736982658253,-577.43,0.00043498,4]
[349132156,1736982658263,-500.0,0.00043498,4]